[Event "Titled Tuesday Blitz September 27 Early 2022"]
[White "Marin Ramirez, Gerardo"]
[Black "White, John S."]
[WhiteFideId "3901068"]
[BlackFideId "2502348"]
[WhiteElo "1920"]
[BlackElo "1883"]
[Result "1-0"]
[Round "07"]
[TimeControl "180+1"]
[Date "2022.09.27"]
[WhiteClock "0:01:28"]
[BlackClock "0:01:10"]

1. d4 {[%clk 0:03:00]}  Nf6 {[%clk 0:02:41]} 2. Nf3 {[%clk 0:03:01]}  g6 {[%clk 0:02:42]} 3. g3 {[%clk 0:03:02]}  Bg7 {[%clk 0:02:41]} 4. Bg2 {[%clk 0:03:03]}  d5 {[%clk 0:02:41]} 5. O-O {[%clk 0:03:04]}  O-O {[%clk 0:02:42]} 6. c3 {[%clk 0:03:05]}  e6 {[%clk 0:02:40]} 7. Nbd2 {[%clk 0:03:06]}  Nc6 {[%clk 0:02:39]} 8. Re1 {[%clk 0:03:07]}  b6 {[%clk 0:02:39]} 9. e4 {[%clk 0:03:08]}  Re8 {[%clk 0:02:37]} 10. e5 {[%clk 0:03:06]}  Nd7 {[%clk 0:02:36]} 11. a3 {[%clk 0:03:00]}  Ba6 {[%clk 0:02:36]} 12. b4 {[%clk 0:02:57]}  Bb7 {[%clk 0:02:32]} 13. Bb2 {[%clk 0:02:52]}  f6 {[%clk 0:02:31]} 14. exf6 {[%clk 0:02:47]}  Nxf6 {[%clk 0:02:31]} 15. Ng5 {[%clk 0:02:43]}  Qd7 {[%clk 0:02:30]} 16. f4 {[%clk 0:02:43]}  h6 {[%clk 0:02:27]} 17. Ngf3 {[%clk 0:02:42]}  a5 {[%clk 0:02:24]} 18. b5 {[%clk 0:02:32]}  Ne7 {[%clk 0:02:22]} 19. a4 {[%clk 0:02:32]}  Nf5 {[%clk 0:02:21]} 20. Ne5 {[%clk 0:02:30]}  Qd8 {[%clk 0:02:14]} 21. Nxg6 {[%clk 0:02:30]}  c6 {[%clk 0:02:06]} 22. bxc6 {[%clk 0:02:25]}  Bxc6 {[%clk 0:02:06]} 23. Ne5 {[%clk 0:02:04]}  Qc7 {[%clk 0:02:04]} 24. Ndf3 {[%clk 0:02:00]}  Bb7 {[%clk 0:02:01]} 25. g4 {[%clk 0:01:52]}  Ne7 {[%clk 0:01:58]} 26. g5 {[%clk 0:01:52]}  hxg5 {[%clk 0:01:51]} 27. Nxg5 {[%clk 0:01:51]}  Nf5 {[%clk 0:01:48]} 28. Bh3 {[%clk 0:01:48]}  Ne4 {[%clk 0:01:41]} 29. Qh5 {[%clk 0:01:41]}  Nxg5 {[%clk 0:01:36]} 30. fxg5 {[%clk 0:01:41]}  Bxe5 {[%clk 0:01:26]} 31. Rxe5 {[%clk 0:01:37]}  Qf7 {[%clk 0:01:19]} 32. g6 {[%clk 0:01:32]}  Qg7 {[%clk 0:01:17]} 33. Rae1 {[%clk 0:01:29]}  Bc8 {[%clk 0:01:10]} 34. Bxf5 {[%clk 0:01:28]} 1-0


[Site "https://www.chess.com"]

[Event "Titled Tuesday Blitz September 27 Early 2022"]
[White "Melikhov, Evgeny V."]
[Black "Smietanska, Wiktoria"]
[WhiteFideId "4122046"]
[BlackFideId "21869359"]
[WhiteElo "1963"]
[BlackElo "1847"]
[Result "1-0"]
[Round "07"]
[TimeControl "180+1"]
[Date "2022.09.27"]
[WhiteClock "0:00:25"]
[BlackClock "0:00:01"]

1. d4 {[%clk 0:03:00]}  Nf6 {[%clk 0:02:59]} 2. c4 {[%clk 0:03:01]}  g6 {[%clk 0:02:58]} 3. Nc3 {[%clk 0:03:01]}  Bg7 {[%clk 0:02:58]} 4. e4 {[%clk 0:03:01]}  d6 {[%clk 0:02:57]} 5. f3 {[%clk 0:03:01]}  O-O {[%clk 0:02:54]} 6. Be3 {[%clk 0:03:02]}  e5 {[%clk 0:02:54]} 7. d5 {[%clk 0:03:02]}  a5 {[%clk 0:02:49]} 8. Bd3 {[%clk 0:02:59]}  Na6 {[%clk 0:02:48]} 9. Qd2 {[%clk 0:02:58]}  Nd7 {[%clk 0:02:30]} 10. O-O-O {[%clk 0:02:56]}  Ndc5 {[%clk 0:02:25]} 11. Bb1 {[%clk 0:02:54]}  Bd7 {[%clk 0:02:21]} 12. Nge2 {[%clk 0:02:48]}  Rb8 {[%clk 0:02:12]} 13. Nb5 {[%clk 0:02:41]}  Re8 {[%clk 0:02:08]} 14. Bc2 {[%clk 0:02:13]}  Nb4 {[%clk 0:02:02]} 15. a3 {[%clk 0:02:07]}  Nxc2 {[%clk 0:01:55]} 16. Kxc2 {[%clk 0:01:58]}  Bxb5 {[%clk 0:01:31]} 17. cxb5 {[%clk 0:01:57]}  Qd7 {[%clk 0:01:28]} 18. Nc3 {[%clk 0:01:55]}  b6 {[%clk 0:01:19]} 19. b4 {[%clk 0:01:47]}  axb4 {[%clk 0:01:16]} 20. axb4 {[%clk 0:01:47]}  Nb7 {[%clk 0:01:14]} 21. Ra1 {[%clk 0:01:47]}  Ra8 {[%clk 0:01:09]} 22. Ra6 {[%clk 0:01:46]}  f5 {[%clk 0:01:05]} 23. Rha1 {[%clk 0:01:43]}  Rab8 {[%clk 0:01:05]} 24. Qd3 {[%clk 0:01:35]}  fxe4 {[%clk 0:00:52]} 25. Nxe4 {[%clk 0:01:35]}  Qf5 {[%clk 0:00:45]} 26. Qc4 {[%clk 0:01:33]}  Qf7 {[%clk 0:00:32]} 27. Ra7 {[%clk 0:01:28]}  Rec8 {[%clk 0:00:19]} 28. Kb3 {[%clk 0:01:17]}  Nd8 {[%clk 0:00:18]} 29. Rc1 {[%clk 0:01:13]}  Bf8 {[%clk 0:00:13]} 30. Rxc7 {[%clk 0:00:48]}  Rxc7 {[%clk 0:00:10]} 31. Qxc7 {[%clk 0:00:48]}  Qxd5+ {[%clk 0:00:11]} 32. Qc4 {[%clk 0:00:48]}  Qxc4+ {[%clk 0:00:10]} 33. Kxc4 {[%clk 0:00:48]}  Nf7 {[%clk 0:00:09]} 34. Kd5 {[%clk 0:00:48]}  Ra8 {[%clk 0:00:06]} 35. Rc7 {[%clk 0:00:45]}  Ra3 {[%clk 0:00:05]} 36. Bxb6 {[%clk 0:00:43]}  Rd3+ {[%clk 0:00:03]} 37. Ke6 {[%clk 0:00:42]}  Nd8+ {[%clk 0:00:03]} 38. Kd7 {[%clk 0:00:39]}  Nf7 {[%clk 0:00:03]} 39. Nf6+ {[%clk 0:00:38]}  Kg7 {[%clk 0:00:03]} 40. Ne8+ {[%clk 0:00:38]}  Kg8 {[%clk 0:00:03]} 41. Kc8 {[%clk 0:00:35]}  d5 {[%clk 0:00:03]} 42. Bc5 {[%clk 0:00:34]}  d4 {[%clk 0:00:03]} 43. Nf6+ {[%clk 0:00:33]}  Kg7 {[%clk 0:00:04]} 44. Nd7 {[%clk 0:00:30]}  Bxc5 {[%clk 0:00:04]} 45. bxc5 {[%clk 0:00:30]}  Re3 {[%clk 0:00:02]} 46. b6 {[%clk 0:00:30]}  d3 {[%clk 0:00:02]} 47. b7 {[%clk 0:00:30]}  d2 {[%clk 0:00:03]} 48. b8=Q {[%clk 0:00:30]}  d1=Q {[%clk 0:00:03]} 49. Qb2 {[%clk 0:00:27]}  Rd3 {[%clk 0:00:02]} 50. Nxe5 {[%clk 0:00:25]}  Rd8+ {[%clk 0:00:03]} 51. Kb7 {[%clk 0:00:26]}  Kg8 {[%clk 0:00:01]} 52. Nxf7 {[%clk 0:00:25]}  Qd5+ {[%clk 0:00:01]} 53. c6 {[%clk 0:00:25]} 1-0


[Site "https://www.chess.com"]

[Event "Titled Tuesday Blitz September 27 Early 2022"]
[White "Mikhailovsky, Vladimir"]
[Black "Concio, Michael Jr."]
[WhiteFideId "34105414"]
[BlackFideId "5217873"]
[WhiteElo "2297"]
[BlackElo "1896"]
[Result "1-0"]
[Round "07"]
[TimeControl "180+1"]
[Date "2022.09.27"]
[WhiteClock "0:00:14"]
[BlackClock "0:00:01"]

1. e4 {[%clk 0:03:00]}  e5 {[%clk 0:02:58]} 2. Nf3 {[%clk 0:03:01]}  Nc6 {[%clk 0:02:56]} 3. Nc3 {[%clk 0:03:01]}  Nf6 {[%clk 0:02:54]} 4. Nxe5 {[%clk 0:03:01]}  Nxe5 {[%clk 0:02:52]} 5. d4 {[%clk 0:03:02]}  Ng6 {[%clk 0:02:53]} 6. e5 {[%clk 0:03:02]}  Ng8 {[%clk 0:02:52]} 7. Bc4 {[%clk 0:03:02]}  d6 {[%clk 0:02:43]} 8. Qf3 {[%clk 0:02:57]}  Be6 {[%clk 0:02:36]} 9. Qxb7 {[%clk 0:02:52]}  Rb8 {[%clk 0:02:06]} 10. Bb5+ {[%clk 0:02:24]}  Bd7 {[%clk 0:02:06]} 11. Bxd7+ {[%clk 0:02:24]}  Kxd7 {[%clk 0:02:07]} 12. Qxa7 {[%clk 0:02:18]}  Qc8 {[%clk 0:01:52]} 13. Qa4+ {[%clk 0:02:15]}  Kd8 {[%clk 0:01:53]} 14. O-O {[%clk 0:02:04]}  Be7 {[%clk 0:01:46]} 15. f4 {[%clk 0:02:01]}  Nh6 {[%clk 0:01:46]} 16. Nd5 {[%clk 0:01:37]}  Nh4 {[%clk 0:01:29]} 17. f5 {[%clk 0:01:21]}  N4xf5 {[%clk 0:01:20]} 18. Nxe7 {[%clk 0:01:05]}  Kxe7 {[%clk 0:00:53]} 19. Bg5+ {[%clk 0:01:05]}  Kf8 {[%clk 0:00:32]} 20. Rf2 {[%clk 0:01:02]}  dxe5 {[%clk 0:00:26]} 21. dxe5 {[%clk 0:00:59]}  Qe6 {[%clk 0:00:20]} 22. Raf1 {[%clk 0:00:56]}  Kg8 {[%clk 0:00:12]} 23. Qa7 {[%clk 0:00:45]}  Qb6 {[%clk 0:00:07]} 24. Qa4 {[%clk 0:00:25]}  g6 {[%clk 0:00:07]} 25. g4 {[%clk 0:00:14]}  Qd4 {[%clk 0:00:02]} 26. Qxd4 {[%clk 0:00:13]}  Nxd4 {[%clk 0:00:03]} 27. Bxh6 {[%clk 0:00:14]}  Ne2+ {[%clk 0:00:01]} 28. Rxe2 {[%clk 0:00:14]} 1-0


[Site "https://www.chess.com"]

[Event "Titled Tuesday Blitz September 27 Early 2022"]
[White "Mladek, Richard"]
[Black "Salman, Pavel"]
[WhiteFideId "386588"]
[BlackFideId "24153753"]
[WhiteElo "2263"]
[BlackElo "2039"]
[Result "1-0"]
[Round "07"]
[TimeControl "180+1"]
[Date "2022.09.27"]
[WhiteClock "0:00:55"]
[BlackClock "0:00:02"]

1. Nf3 {[%clk 0:03:00]}  c5 {[%clk 0:03:00]} 2. e4 {[%clk 0:03:00]}  e6 {[%clk 0:03:00]} 3. d4 {[%clk 0:03:00]}  cxd4 {[%clk 0:03:00]} 4. Nxd4 {[%clk 0:03:01]}  a6 {[%clk 0:03:01]} 5. Nc3 {[%clk 0:03:00]}  Qc7 {[%clk 0:03:01]} 6. a3 {[%clk 0:03:00]}  Nf6 {[%clk 0:03:01]} 7. Bd3 {[%clk 0:02:58]}  Be7 {[%clk 0:03:00]} 8. O-O {[%clk 0:02:58]}  d6 {[%clk 0:03:01]} 9. Kh1 {[%clk 0:02:56]}  Nbd7 {[%clk 0:03:01]} 10. f4 {[%clk 0:02:57]}  Nc5 {[%clk 0:03:02]} 11. Qf3 {[%clk 0:02:56]}  Bd7 {[%clk 0:03:01]} 12. Bd2 {[%clk 0:02:53]}  h5 {[%clk 0:02:58]} 13. Rae1 {[%clk 0:02:53]}  h4 {[%clk 0:02:57]} 14. e5 {[%clk 0:02:53]}  Nh5 {[%clk 0:02:50]} 15. exd6 {[%clk 0:02:54]}  Qxd6 {[%clk 0:02:45]} 16. Qe3 {[%clk 0:02:36]}  Nxd3 {[%clk 0:02:36]} 17. cxd3 {[%clk 0:02:29]}  Bc6 {[%clk 0:01:50]} 18. Ne4 {[%clk 0:02:21]}  Qd5 {[%clk 0:01:42]} 19. f5 {[%clk 0:01:59]}  O-O-O {[%clk 0:01:33]} 20. Nxc6 {[%clk 0:01:53]}  bxc6 {[%clk 0:01:33]} 21. Qa7 {[%clk 0:01:48]}  e5 {[%clk 0:01:03]} 22. Qxe7 {[%clk 0:01:42]}  Qxd3 {[%clk 0:00:54]} 23. Nc5 {[%clk 0:01:20]}  Qb5 {[%clk 0:00:43]} 24. Ba5 {[%clk 0:01:16]}  Kb8 {[%clk 0:00:12]} 25. Bxd8 {[%clk 0:01:08]}  Ka8 {[%clk 0:00:08]} 26. Rd1 {[%clk 0:00:59]}  Qb8 {[%clk 0:00:07]} 27. Qd7 {[%clk 0:00:56]}  Ng3+ {[%clk 0:00:04]} 28. hxg3 {[%clk 0:00:56]}  hxg3+ {[%clk 0:00:04]} 29. Kg1 {[%clk 0:00:57]}  Qb5 {[%clk 0:00:04]} 30. Qc8+ {[%clk 0:00:55]}  Ka7 {[%clk 0:00:03]} 31. Rd7+ {[%clk 0:00:55]}  Qb7 {[%clk 0:00:02]} 32. Rxb7# {[%clk 0:00:55]} 1-0


[Site "https://www.chess.com"]

[Event "Titled Tuesday Blitz September 27 Early 2022"]
[White "Moaataz, Ayah"]
[Black "Shashikant, Kutwal"]
[WhiteFideId "10615873"]
[BlackFideId "5006520"]
[WhiteElo "1993"]
[BlackElo "2321"]
[Result "1-0"]
[Round "07"]
[TimeControl "180+1"]
[Date "2022.09.27"]
[WhiteClock "0:00:17"]
[BlackClock "0:00:02"]

1. c4 {[%clk 0:03:00]}  b6 {[%clk 0:02:57]} 2. g3 {[%clk 0:02:58]}  Bb7 {[%clk 0:02:57]} 3. Nf3 {[%clk 0:02:59]}  g5 {[%clk 0:02:57]} 4. Bg2 {[%clk 0:02:59]}  g4 {[%clk 0:02:57]} 5. Nh4 {[%clk 0:03:00]}  Bxg2 {[%clk 0:02:58]} 6. Nxg2 {[%clk 0:03:00]}  e6 {[%clk 0:02:58]} 7. d4 {[%clk 0:03:00]}  h5 {[%clk 0:02:56]} 8. e4 {[%clk 0:03:00]}  Be7 {[%clk 0:02:55]} 9. Nc3 {[%clk 0:02:59]}  d6 {[%clk 0:02:41]} 10. Be3 {[%clk 0:02:55]}  Nd7 {[%clk 0:02:38]} 11. Qd2 {[%clk 0:02:53]}  h4 {[%clk 0:02:32]} 12. gxh4 {[%clk 0:02:53]}  Bxh4 {[%clk 0:02:33]} 13. Qe2 {[%clk 0:02:50]}  Ngf6 {[%clk 0:01:56]} 14. O-O-O {[%clk 0:02:34]}  e5 {[%clk 0:01:31]} 15. h3 {[%clk 0:02:31]}  exd4 {[%clk 0:01:11]} 16. Rxd4 {[%clk 0:02:28]}  Ne5 {[%clk 0:00:57]} 17. hxg4 {[%clk 0:02:23]}  Nfxg4 {[%clk 0:00:56]} 18. Nd5 {[%clk 0:02:07]}  Nxe3 {[%clk 0:00:40]} 19. Qxe3 {[%clk 0:01:57]}  Bf6 {[%clk 0:00:09]} 20. Rxh8+ {[%clk 0:01:37]}  Bxh8 {[%clk 0:00:10]} 21. Qh3 {[%clk 0:01:28]}  Ng6 {[%clk 0:00:10]} 22. Rd3 {[%clk 0:01:18]}  c6 {[%clk 0:00:08]} 23. Nde3 {[%clk 0:01:07]}  Qf6 {[%clk 0:00:07]} 24. Rd2 {[%clk 0:01:06]}  Qe6 {[%clk 0:00:04]} 25. Qf5 {[%clk 0:00:58]}  O-O-O {[%clk 0:00:02]} 26. Ne1 {[%clk 0:00:50]}  Ne5 {[%clk 0:00:01]} 27. b3 {[%clk 0:00:38]}  Kc7 {[%clk 0:00:01]} 28. f4 {[%clk 0:00:35]}  Qxf5 {[%clk 0:00:01]} 29. Nxf5 {[%clk 0:00:35]}  Nd7 {[%clk 0:00:02]} 30. Nxd6 {[%clk 0:00:31]}  Bc3 {[%clk 0:00:02]} 31. Nxf7 {[%clk 0:00:24]}  Bxd2+ {[%clk 0:00:01]} 32. Kxd2 {[%clk 0:00:25]}  Rf8 {[%clk 0:00:02]} 33. Ng5 {[%clk 0:00:24]}  Rh8 {[%clk 0:00:01]} 34. Nef3 {[%clk 0:00:23]}  Rh1 {[%clk 0:00:02]} 35. a4 {[%clk 0:00:23]}  Ra1 {[%clk 0:00:02]} 36. Kc3 {[%clk 0:00:23]}  Nc5 {[%clk 0:00:03]} 37. f5 {[%clk 0:00:22]}  Rf1 {[%clk 0:00:03]} 38. f6 {[%clk 0:00:22]}  Kd7 {[%clk 0:00:02]} 39. Kd4 {[%clk 0:00:21]}  Ne6+ {[%clk 0:00:02]} 40. Ke5 {[%clk 0:00:19]}  Nxg5 {[%clk 0:00:01]} 41. Nxg5 {[%clk 0:00:20]}  c5 {[%clk 0:00:01]} 42. Ne6 {[%clk 0:00:18]}  Ke8 {[%clk 0:00:02]} 43. Kd5 {[%clk 0:00:14]}  Rf3 {[%clk 0:00:02]} 44. e5 {[%clk 0:00:15]}  Rxb3 {[%clk 0:00:02]} 45. Nc7+ {[%clk 0:00:15]}  Kf7 {[%clk 0:00:02]} 46. e6+ {[%clk 0:00:15]}  Kxf6 {[%clk 0:00:02]} 47. Kd6 {[%clk 0:00:15]}  Rd3+ {[%clk 0:00:02]} 48. Nd5+ {[%clk 0:00:16]}  Kg7 {[%clk 0:00:01]} 49. Kd7 {[%clk 0:00:16]}  Rxd5+ {[%clk 0:00:01]} 50. cxd5 {[%clk 0:00:16]}  c4 {[%clk 0:00:02]} 51. e7 {[%clk 0:00:16]}  c3 {[%clk 0:00:02]} 52. e8=Q {[%clk 0:00:17]} 1-0


[Site "https://www.chess.com"]

[Event "Titled Tuesday Blitz September 27 Early 2022"]
[White "Mouhamad, Joachim"]
[Black "Cramling Bellon, Anna"]
[WhiteFideId "656410"]
[BlackFideId "32009232"]
[WhiteElo "2147"]
[BlackElo "1905"]
[Result "1-0"]
[Round "07"]
[TimeControl "180+1"]
[Date "2022.09.27"]
[WhiteClock "0:00:27"]
[BlackClock "0:00:01"]

1. e4 {[%clk 0:03:00]}  c5 {[%clk 0:02:59]} 2. d4 {[%clk 0:02:56]}  cxd4 {[%clk 0:02:59]} 3. c3 {[%clk 0:02:56]}  Nf6 {[%clk 0:02:54]} 4. e5 {[%clk 0:02:54]}  Nd5 {[%clk 0:02:54]} 5. Bc4 {[%clk 0:02:51]}  e6 {[%clk 0:02:53]} 6. Nf3 {[%clk 0:02:49]}  d6 {[%clk 0:02:52]} 7. cxd4 {[%clk 0:02:41]}  Nc6 {[%clk 0:02:48]} 8. O-O {[%clk 0:02:38]}  dxe5 {[%clk 0:02:45]} 9. dxe5 {[%clk 0:02:36]}  Be7 {[%clk 0:02:45]} 10. Qe2 {[%clk 0:02:28]}  O-O {[%clk 0:02:42]} 11. Rd1 {[%clk 0:02:28]}  Qc7 {[%clk 0:02:29]} 12. a3 {[%clk 0:02:10]}  Nb6 {[%clk 0:02:19]} 13. Bd3 {[%clk 0:02:09]}  Bd7 {[%clk 0:02:13]} 14. Nc3 {[%clk 0:02:09]}  Nd5 {[%clk 0:01:53]} 15. Qe4 {[%clk 0:01:55]}  g6 {[%clk 0:01:51]} 16. Nxd5 {[%clk 0:01:56]}  exd5 {[%clk 0:01:49]} 17. Qxd5 {[%clk 0:01:56]}  Be6 {[%clk 0:01:49]} 18. Qe4 {[%clk 0:01:49]}  Rfd8 {[%clk 0:01:48]} 19. Qe2 {[%clk 0:01:42]}  Bb3 {[%clk 0:01:42]} 20. Re1 {[%clk 0:01:29]}  Bc5 {[%clk 0:01:02]} 21. Bf4 {[%clk 0:01:21]}  Be6 {[%clk 0:00:59]} 22. Bc4 {[%clk 0:01:18]}  Bxf2+ {[%clk 0:00:22]} 23. Kxf2 {[%clk 0:01:12]}  Nd4 {[%clk 0:00:22]} 24. Nxd4 {[%clk 0:01:00]}  Rxd4 {[%clk 0:00:22]} 25. Bxe6 {[%clk 0:00:44]}  Rxf4+ {[%clk 0:00:14]} 26. Kg3 {[%clk 0:00:45]}  fxe6 {[%clk 0:00:03]} 27. Kxf4 {[%clk 0:00:45]}  Rf8+ {[%clk 0:00:03]} 28. Kg3 {[%clk 0:00:44]}  Qb6 {[%clk 0:00:01]} 29. Rf1 {[%clk 0:00:26]}  Qb3+ {[%clk 0:00:01]} 30. Rf3 {[%clk 0:00:27]} 1-0


[Site "https://www.chess.com"]

[Event "Titled Tuesday Blitz September 27 Early 2022"]
[White "Odegov, Artem"]
[Black "Harsha Bharathakoti"]
[WhiteFideId "34183644"]
[BlackFideId "5078776"]
[WhiteElo "2286"]
[BlackElo "2523"]
[Result "0-1"]
[Round "07"]
[TimeControl "180+1"]
[Date "2022.09.27"]
[WhiteClock "0:00:02"]
[BlackClock "0:00:57"]

1. d4 {[%clk 0:03:00]}  e6 {[%clk 0:02:46]} 2. c4 {[%clk 0:03:00]}  b6 {[%clk 0:02:47]} 3. Nf3 {[%clk 0:03:00]}  Bb7 {[%clk 0:02:47]} 4. g3 {[%clk 0:03:00]}  Bb4+ {[%clk 0:02:47]} 5. Bd2 {[%clk 0:03:00]}  Bxf3 {[%clk 0:02:48]} 6. exf3 {[%clk 0:03:00]}  Bxd2+ {[%clk 0:02:49]} 7. Nxd2 {[%clk 0:03:01]}  d5 {[%clk 0:02:49]} 8. Bg2 {[%clk 0:03:01]}  c6 {[%clk 0:02:49]} 9. O-O {[%clk 0:03:01]}  Nd7 {[%clk 0:02:50]} 10. f4 {[%clk 0:03:00]}  Ne7 {[%clk 0:02:50]} 11. Rc1 {[%clk 0:02:58]}  O-O {[%clk 0:02:51]} 12. Re1 {[%clk 0:02:59]}  Rc8 {[%clk 0:02:48]} 13. Nf3 {[%clk 0:02:59]}  Nf5 {[%clk 0:02:48]} 14. Ne5 {[%clk 0:02:56]}  Nxe5 {[%clk 0:02:43]} 15. fxe5 {[%clk 0:02:53]}  dxc4 {[%clk 0:02:23]} 16. Rxc4 {[%clk 0:02:50]}  b5 {[%clk 0:02:23]} 17. Rxc6 {[%clk 0:02:44]}  Rxc6 {[%clk 0:02:24]} 18. Bxc6 {[%clk 0:02:45]}  Nxd4 {[%clk 0:02:24]} 19. Bg2 {[%clk 0:02:43]}  Qb6 {[%clk 0:02:21]} 20. Qd3 {[%clk 0:02:35]}  Rd8 {[%clk 0:02:18]} 21. Rc1 {[%clk 0:02:33]}  g6 {[%clk 0:02:10]} 22. h4 {[%clk 0:02:32]}  h5 {[%clk 0:02:09]} 23. Qe3 {[%clk 0:02:27]}  b4 {[%clk 0:02:03]} 24. Kh2 {[%clk 0:02:25]}  Qa5 {[%clk 0:01:49]} 25. a3 {[%clk 0:01:57]}  bxa3 {[%clk 0:01:48]} 26. bxa3 {[%clk 0:01:58]}  Nf5 {[%clk 0:01:48]} 27. Qc5 {[%clk 0:01:49]}  Qd2 {[%clk 0:01:41]} 28. Rc2 {[%clk 0:01:45]}  Qd3 {[%clk 0:01:42]} 29. Rc3 {[%clk 0:01:42]}  Qd2 {[%clk 0:01:22]} 30. Rc2 {[%clk 0:01:41]}  Qd7 {[%clk 0:01:22]} 31. Qa5 {[%clk 0:01:26]}  Qd4 {[%clk 0:01:17]} 32. Qc5 {[%clk 0:01:19]}  Kg7 {[%clk 0:01:11]} 33. Qxd4 {[%clk 0:00:49]}  Rxd4 {[%clk 0:01:12]} 34. Rc3 {[%clk 0:00:44]}  Rd2 {[%clk 0:01:09]} 35. Kg1 {[%clk 0:00:42]}  Ra2 {[%clk 0:01:09]} 36. Be4 {[%clk 0:00:36]}  Nd4 {[%clk 0:01:09]} 37. Rd3 {[%clk 0:00:17]}  Nb5 {[%clk 0:01:08]} 38. Bc6 {[%clk 0:00:17]}  Nxa3 {[%clk 0:01:05]} 39. Kg2 {[%clk 0:00:17]}  Nc4 {[%clk 0:01:05]} 40. Rc3 {[%clk 0:00:11]}  Nxe5 {[%clk 0:01:05]} 41. Be4 {[%clk 0:00:03]}  Ng4 {[%clk 0:01:04]} 42. Rc7 {[%clk 0:00:03]}  Rxf2+ {[%clk 0:01:04]} 43. Kg1 {[%clk 0:00:03]}  a5 {[%clk 0:01:04]} 44. Ra7 {[%clk 0:00:03]}  Ra2 {[%clk 0:01:05]} 45. Bd3 {[%clk 0:00:04]}  Ne5 {[%clk 0:01:03]} 46. Bb5 {[%clk 0:00:03]}  Nf3+ {[%clk 0:00:57]} 47. Kf1 {[%clk 0:00:03]}  Nd4 {[%clk 0:00:58]} 48. Bc4 {[%clk 0:00:03]}  Ra4 {[%clk 0:00:57]} 49. Bd3 {[%clk 0:00:03]}  Ra3 {[%clk 0:00:56]} 50. Bc4 {[%clk 0:00:04]}  Rxg3 {[%clk 0:00:56]} 51. Rxa5 {[%clk 0:00:04]}  Rg4 {[%clk 0:00:56]} 52. Ra7 {[%clk 0:00:05]}  Rxh4 {[%clk 0:00:56]} 53. Rd7 {[%clk 0:00:05]}  Rf4+ {[%clk 0:00:56]} 54. Kg2 {[%clk 0:00:05]}  g5 {[%clk 0:00:57]} 55. Kg3 {[%clk 0:00:05]}  h4+ {[%clk 0:00:58]} 56. Kg2 {[%clk 0:00:05]}  Rg4+ {[%clk 0:00:57]} 57. Kf2 {[%clk 0:00:02]}  h3 {[%clk 0:00:57]} 0-1


[Site "https://www.chess.com"]

[Event "Titled Tuesday Blitz September 27 Early 2022"]
[White "Perez Gormaz, Matias"]
[Black "Ilkhomi, Jaloliddin"]
[WhiteFideId "3406342"]
[BlackFideId "14700948"]
[WhiteElo "2341"]
[BlackElo "1440"]
[Result "1-0"]
[Round "07"]
[TimeControl "180+1"]
[Date "2022.09.27"]
[WhiteClock "0:00:29"]
[BlackClock "0:00:04"]

1. Nf3 {[%clk 0:03:00]}  Nf6 {[%clk 0:03:00]} 2. g3 {[%clk 0:03:01]}  d5 {[%clk 0:03:00]} 3. Bg2 {[%clk 0:03:01]}  c6 {[%clk 0:03:00]} 4. c4 {[%clk 0:02:59]}  Bf5 {[%clk 0:03:00]} 5. O-O {[%clk 0:02:55]}  e6 {[%clk 0:03:00]} 6. cxd5 {[%clk 0:02:54]}  exd5 {[%clk 0:03:01]} 7. d3 {[%clk 0:02:53]}  Nbd7 {[%clk 0:03:00]} 8. Qb3 {[%clk 0:02:52]}  Qb6 {[%clk 0:03:00]} 9. Qc2 {[%clk 0:02:52]}  Be7 {[%clk 0:02:58]} 10. Nc3 {[%clk 0:02:52]}  O-O {[%clk 0:02:57]} 11. e4 {[%clk 0:02:53]}  dxe4 {[%clk 0:02:57]} 12. dxe4 {[%clk 0:02:54]}  Bg6 {[%clk 0:02:57]} 13. Nh4 {[%clk 0:02:50]}  Rad8 {[%clk 0:02:35]} 14. Bf4 {[%clk 0:02:48]}  Nc5 {[%clk 0:02:19]} 15. Nxg6 {[%clk 0:02:40]}  hxg6 {[%clk 0:02:16]} 16. e5 {[%clk 0:02:36]}  Nd5 {[%clk 0:02:12]} 17. Nxd5 {[%clk 0:02:36]}  cxd5 {[%clk 0:02:12]} 18. Rfd1 {[%clk 0:01:41]}  d4 {[%clk 0:02:02]} 19. Qc4 {[%clk 0:01:41]}  Ne6 {[%clk 0:01:56]} 20. Bd2 {[%clk 0:01:39]}  Rc8 {[%clk 0:01:48]} 21. Qb3 {[%clk 0:01:38]}  Rc7 {[%clk 0:01:35]} 22. Qxb6 {[%clk 0:01:38]}  axb6 {[%clk 0:01:36]} 23. Rac1 {[%clk 0:01:35]}  Rfc8 {[%clk 0:01:26]} 24. Bxb7 {[%clk 0:01:30]}  Rxc1 {[%clk 0:01:25]} 25. Bxc1 {[%clk 0:01:30]}  Rc7 {[%clk 0:01:18]} 26. Bd5 {[%clk 0:01:26]}  Bc5 {[%clk 0:00:58]} 27. a3 {[%clk 0:01:23]}  b5 {[%clk 0:00:58]} 28. Kf1 {[%clk 0:01:20]}  Kf8 {[%clk 0:00:56]} 29. Bd2 {[%clk 0:01:16]}  Ke7 {[%clk 0:00:54]} 30. Rc1 {[%clk 0:01:14]}  Kd7 {[%clk 0:00:24]} 31. Ke2 {[%clk 0:01:04]}  d3+ {[%clk 0:00:16]} 32. Kxd3 {[%clk 0:01:04]}  Bxf2 {[%clk 0:00:17]} 33. Rf1 {[%clk 0:01:04]}  Bb6 {[%clk 0:00:02]} 34. Rxf7+ {[%clk 0:01:04]}  Ke8 {[%clk 0:00:03]} 35. Bxe6 {[%clk 0:01:01]}  Rxf7 {[%clk 0:00:03]} 36. Bxf7+ {[%clk 0:01:00]}  Kxf7 {[%clk 0:00:04]} 37. Ke4 {[%clk 0:00:55]}  Ke6 {[%clk 0:00:05]} 38. g4 {[%clk 0:00:53]}  Bg1 {[%clk 0:00:04]} 39. h3 {[%clk 0:00:53]}  Bh2 {[%clk 0:00:05]} 40. Bc3 {[%clk 0:00:51]}  Bg1 {[%clk 0:00:04]} 41. Bd4 {[%clk 0:00:51]}  Bh2 {[%clk 0:00:03]} 42. b3 {[%clk 0:00:49]}  Bg3 {[%clk 0:00:03]} 43. a4 {[%clk 0:00:36]}  bxa4 {[%clk 0:00:04]} 44. bxa4 {[%clk 0:00:37]}  Be1 {[%clk 0:00:05]} 45. Bb6 {[%clk 0:00:34]}  Bc3 {[%clk 0:00:05]} 46. a5 {[%clk 0:00:34]}  Kd7 {[%clk 0:00:04]} 47. a6 {[%clk 0:00:33]}  Kc6 {[%clk 0:00:04]} 48. Bd4 {[%clk 0:00:31]}  Bb4 {[%clk 0:00:04]} 49. e6 {[%clk 0:00:30]}  Bd6 {[%clk 0:00:04]} 50. Bxg7 {[%clk 0:00:30]}  Kb6 {[%clk 0:00:04]} 51. Kd5 {[%clk 0:00:30]}  Be7 {[%clk 0:00:04]} 52. Bd4+ {[%clk 0:00:29]}  Kxa6 {[%clk 0:00:04]} 53. Bc5 {[%clk 0:00:29]} 1-0


[Site "https://www.chess.com"]